bitfinex/quotes_ETHUSD_20260216
["timestamp","ask_amount","ask_price","bid_price","bid_amount"]
[1771204562534,0.46149237,1976.2,1975.5,0.001]
[1771204562934,0.46259237,1976.1,1975.5,0.001]
[1771204564660,0.46149237,1975.8,1975.4,0.001]
[1771204564843,0.56389237,1976.0,1975.4,0.001]
[1771204566343,0.46149237,1976.0,1975.4,0.001]
[1771204566750,0.46149237,1975.9,1975.4,0.001]
[1771204575147,0.46149237,1975.9,1975.5,0.001]
[1771204575357,0.4880327,1975.8,1975.5,0.001]
[1771204579749,0.0011,1975.8,1975.5,0.001]
[1771204581852,0.4880327,1975.8,1975.5,0.001]
[1771204583623,0.4880327,1975.8,1975.2,0.001]
[1771204583948,0.4880327,1975.8,1975.2,0.913]
[1771204585458,0.4880327,1975.8,1975.2,0.001]
[1771204585667,0.4880327,1975.8,1975.2,1.38364073]
[1771204585668,0.0011,1975.8,1975.2,1.38364073]
[1771204586753,0.0011,1975.8,1975.3,0.47064073]
[1771204588159,0.0011,1975.8,1975.3,0.47164073]
[1771204588536,0.0011,1975.7,1975.3,0.47164073]
[1771204590650,0.0011,1975.7,1975.4,0.877]
[1771204590847,0.0011,1975.7,1975.4,2.25964073]
[1771204591532,0.0011,1975.7,1975.5,0.47064073]
[1771204595168,0.0011,1975.7,1975.6,1.789]
[1771204597380,0.0011,1975.7,1975.3,0.47164073]
[1771204597548,0.0011,1975.7,1975.6,1.788]
[1771204605786,0.47686974,1975.7,1975.2,0.001]
[1771204605984,0.47686974,1975.7,1974.7,1.95768082]
[1771204606186,0.47686974,1975.7,1975.0,0.00353886]
[1771204607379,0.47686974,1975.7,1975.0,0.00253886]
[1771204607683,0.47686974,1975.7,1975.0,0.00353886]
[1771204607989,8.17835499,1975.4,1975.0,0.00353886]
[1771204611395,0.47576974,1975.4,1975.0,0.00353886]
[1771204611598,8.17835499,1975.6,1975.0,0.00353886]
[1771204611796,0.47576974,1975.5,1975.0,0.00353886]
[1771204613072,0.0011,1975.7,1975.0,0.47121968]
[1771204615374,0.0011,1975.7,1975.1,0.001]
[1771204615698,0.0011,1975.7,1975.2,0.46768082]
[1771204615896,0.0011,1975.4,1975.2,0.46768082]
[1771204616193,0.0011,1975.4,1975.3,0.46868082]
[1771204616392,0.0011,1975.7,1975.3,0.46768082]
[1771204616600,0.0011,1975.7,1975.5,0.46768082]
[1771204616803,0.0011,1975.9,1975.7,0.46768082]
[1771204617595,0.0011,1976.2,1975.7,0.46768082]
[1771204620899,0.0011,1976.2,1975.5,0.46768082]
[1771204621069,0.0011,1976.2,1975.6,1.783]
[1771204621070,0.47686974,1976.2,1975.6,1.783]
[1771204622402,0.47686974,1976.2,1975.7,1.782]
[1771204627803,0.0011,1976.0,1975.7,1.782]
[1771204629484,0.0011,1976.0,1975.4,0.46768082]
[1771204629714,0.0011,1976.0,1975.1,0.05162265]
[1771204629715,0.47686974,1976.0,1975.5,1.781]
[1771204629913,0.0011,1976.0,1975.6,0.46768082]
[1771204633817,0.0011,1976.0,1975.8,0.47352676]
[1771204636322,0.0011,1976.0,1975.8,0.5241366]
[1771204636822,0.0011,1976.0,1975.9,2.25552676]
[1771204637404,0.0011,1976.0,1975.9,1.784]
[1771204637603,0.0011,1976.2,1975.9,1.784]
[1771204637939,0.0011,1976.4,1976.0,0.47352676]
[1771204638233,0.0011,1976.8,1976.3,8.16508199]
[1771204638404,0.0011,1976.8,1976.4,1.34552676]
[1771204638801,0.00263886,1977.0,1976.5,0.47352676]
[1771204639032,0.00263886,1977.0,1976.6,1.38552676]
[1771204640037,0.00263886,1977.0,1976.7,8.16508199]
[1771204640239,0.0011,1977.2,1976.7,8.16508199]
[1771204640240,0.0011,1977.2,1976.8,0.47352676]
[1771204640412,7.69309409,1978.0,1976.6,0.912]
[1771204640413,0.45089315,1977.7,1976.9,9.04008199]
[1771204641099,0.45089315,1977.7,1977.0,0.47352676]
[1771204642735,0.45089315,1977.7,1976.9,8.56655523]
[1771204642921,0.45089315,1977.4,1977.0,0.876]
[1771204643126,0.45089315,1977.4,1976.5,7.69155523]
[1771204643330,7.69155523,1977.5,1976.6,1.787]
[1771204643331,8.14244838,1977.1,1976.6,1.787]
[1771204643635,0.45089315,1977.0,1976.6,1.787]
[1771204644147,0.45089315,1977.2,1976.6,1.787]
[1771204645344,0.45089315,1977.2,1976.7,0.876]
[1771204646027,0.45089315,1977.4,1976.7,1.34952676]
[1771204647730,0.45089315,1977.4,1976.7,0.876]
[1771204650011,0.45089315,1977.4,1976.8,1.786]
[1771204651751,0.45089315,1977.6,1976.8,2.25952676]
[1771204652115,0.45089315,1977.6,1976.8,2.26052676]
[1771204652433,0.45199315,1977.6,1976.8,1.787]
[1771204653523,0.45199315,1977.6,1976.8,0.001]
[1771204653524,0.45089315,1977.4,1976.8,0.001]
[1771204653811,0.45089315,1977.4,1976.9,1.786]
[1771204654016,0.45089315,1977.4,1976.8,0.001]
[1771204654217,0.45089315,1977.4,1976.9,1.786]
[1771204656143,0.45089315,1977.4,1976.9,0.874]
[1771204656648,0.45089315,1977.4,1977.0,0.874]
[1771204659151,0.45089315,1977.4,1976.9,0.874]
[1771204665128,0.45089315,1977.4,1977.0,0.001]
[1771204665451,0.45825392,1977.3,1977.0,0.001]
[1771204665635,0.0011,1977.3,1977.0,0.001]
[1771204665833,0.0011,1977.3,1977.0,0.46307003]
[1771204666625,0.45825392,1977.3,1977.0,0.001]
[1771204667029,0.45825392,1977.3,1976.8,0.001]
[1771204667270,0.45825392,1977.3,1976.7,0.001]
[1771204667271,0.45715392,1977.1,1976.5,0.873]
[1771204669609,0.45715392,1977.1,1976.5,0.001]
[1771204671569,0.45825392,1977.3,1976.5,0.46307003]
[1771204673405,9.59249693,1976.8,1976.0,0.00153886]
[1771204673574,0.45715392,1976.7,1976.0,0.00153886]
[1771204673774,0.55955392,1976.6,1976.0,0.00153886]
[1771204674001,7.69647675,1976.2,1975.8,0.001]
[1771204675880,0.45715392,1976.3,1975.8,0.001]
[1771204678119,0.45715392,1976.3,1975.9,0.001]
[1771204680220,0.1024,1976.8,1975.9,0.51367987]
[1771204680439,0.45715392,1976.9,1975.9,0.51367987]
[1771204681500,0.45715392,1976.9,1976.0,1.782]
[1771204682314,0.45715392,1976.9,1976.0,2.24407003]
[1771204684835,0.45715392,1976.9,1976.1,1.78]
[1771204684990,0.45715392,1976.9,1976.2,0.911]
[1771204691137,0.45825392,1976.8,1976.2,0.911]
[1771204691302,0.45825392,1976.8,1976.1,0.869]
[1771204691303,0.45825392,1976.8,1976.1,0.001]
[1771204691507,0.45825392,1976.8,1976.1,0.912]
[1771204692817,0.45825392,1976.8,1976.2,0.911]
[1771204698007,7.69211265,1976.8,1976.2,1.37619421]
[1771204699138,7.69211265,1976.8,1976.1,0.001]
[1771204699139,7.69101265,1976.4,1976.1,0.001]
[1771204701440,8.15885716,1976.4,1976.1,0.001]
[1771204702437,0.0011,1976.8,1976.1,0.46619421]
[1771204702636,0.0011,1976.8,1976.2,0.0505983]
[1771204702835,0.0011,1976.8,1976.3,0.46519421]
[1771204703422,0.0011,1976.8,1976.4,1.775]
[1771204704417,0.0011,1976.8,1976.3,0.46519421]
[1771204704740,0.0011,1976.8,1976.4,1.775]
[1771204709647,0.0011,1976.8,1976.4,2.24019421]
[1771204709858,0.0011,1976.8,1976.1,0.05159831]
[1771204709859,0.0011,1976.8,1976.2,0.46519421]
[1771204710163,0.0011,1976.8,1976.3,1.774]
[1771204712550,0.0011,1976.8,1976.4,0.46519421]
[1771204714959,0.0011,1976.8,1976.5,1.776]
[1771204715971,0.0011,1976.7,1976.5,1.776]
[1771204716471,0.0011,1976.7,1976.1,0.46619421]
[1771204716773,0.0011,1976.7,1976.2,1.776]
[1771204717079,0.46894451,1976.7,1976.1,0.001]
[1771204717384,7.69101265,1976.4,1976.2,0.868]
[1771204718268,8.15885716,1976.4,1976.2,0.868]
[1771204718635,0.46784451,1976.3,1976.0,0.001]
[1771204718837,0.46784451,1976.3,1976.0,0.868]
[1771204719266,0.46784451,1976.3,1976.0,0.001]
[1771204719456,8.15885716,1976.2,1976.0,0.001]
[1771204720950,0.46784451,1976.2,1976.0,0.001]
[1771204721268,7.69101265,1976.4,1976.0,0.001]
[1771204721269,8.15885716,1976.4,1976.0,0.001]
[1771204721566,7.69101265,1976.4,1976.0,0.002]
[1771204722546,8.15885716,1976.4,1976.0,0.868]
[1771204725484,8.15885716,1976.4,1975.8,0.912]
[1771204725485,0.4894574,1976.1,1975.7,0.001]
[1771204725794,7.69101265,1976.0,1975.8,0.865]
[1771204727140,7.69101265,1976.0,1975.7,0.001]
[1771204727349,8.18047005,1976.0,1975.7,0.001]
[1771204727843,0.4894574,1976.0,1975.7,0.001]
[1771204729584,0.4894574,1976.0,1975.8,0.001]
[1771204732681,0.0011,1976.3,1975.8,0.001]
[1771204733182,0.4905574,1976.3,1975.8,0.001]
[1771204739180,0.0011,1976.3,1975.8,0.001]
[1771204740180,0.4905574,1976.3,1975.8,0.001]
[1771204741184,0.0011,1976.3,1975.8,0.001]
[1771204741375,0.4905574,1976.3,1975.8,0.001]
[1771204741851,0.4894574,1976.1,1975.6,0.001]
[1771204743557,0.4894574,1975.9,1975.1,0.913]
[1771204743752,0.4894574,1975.9,1975.1,0.001]
[1771204744903,0.4894574,1975.9,1975.1,0.49838702]
[1771204745786,0.0011,1976.2,1975.1,0.49838702]
[1771204745787,0.4894574,1976.1,1975.1,0.54901735]
[1771204746288,0.1035,1976.2,1975.1,0.54901735]
[1771204746455,0.5929574,1976.2,1975.1,0.54901735]
[1771204747191,0.0011,1976.2,1975.1,0.54901735]
[1771204750970,0.4905574,1976.2,1975.1,0.54901735]
[1771204751471,0.4905574,1976.2,1975.3,0.49738702]
[1771204751675,0.4905574,1976.2,1975.3,0.54801222]
[1771204753064,0.4905574,1976.2,1975.4,1.768]
[1771204753503,0.4905574,1976.2,1975.4,2.26538702]
[1771204754194,0.50050073,1976.1,1975.4,2.26538702]
[1771204754998,0.50050073,1976.1,1975.4,2.24768477]
[1771204758500,0.0011,1976.1,1975.5,0.48787788]
[1771204760200,0.0011,1976.1,1975.6,1.767]
[1771204765118,0.0011,1976.1,1975.7,0.855]
[1771204766311,0.0011,1976.0,1975.7,0.855]
[1771204768389,0.0011,1976.0,1975.6,0.48787788]
[1771204768686,0.0011,1976.0,1975.7,0.855]
[1771204769685,0.0011,1976.0,1975.7,1.34287788]
[1771204770807,0.0011,1976.0,1975.7,0.855]
[1771204773118,0.0011,1976.0,1975.7,1.34287788]
[1771204773417,0.0011,1976.0,1975.8,0.48787788]
[1771204774918,0.0011,1976.0,1975.8,0.5384882]
[1771204775106,0.0011,1976.2,1975.9,0.48787788]
[1771204775717,7.69628956,1976.1,1975.5,0.001]
[1771204775896,0.49940073,1976.0,1975.6,0.857]
[1771204776412,8.19569029,1976.1,1975.6,0.857]
[1771204776613,8.19569029,1976.1,1975.7,0.857]
[1771204777419,0.0011,1976.2,1975.7,0.857]
[1771204777611,0.50050073,1976.2,1975.7,0.857]
[1771204779495,0.0011,1976.1,1975.6,0.48787788]
[1771204779693,0.0011,1976.1,1975.7,0.857]
[1771204784000,0.0011,1976.1,1975.6,0.48787788]
[1771204784201,0.4597819,1976.0,1975.5,0.001]
[1771204784427,0.4597819,1976.0,1975.6,0.856]
[1771204785006,8.15607146,1975.9,1975.5,0.001]
[1771204785210,0.4687802,1975.8,1975.6,0.856]
[1771204786404,8.16506976,1975.9,1975.6,0.856]
[1771204789317,8.16506976,1975.9,1975.5,0.856]
[1771204791032,8.16506976,1975.9,1975.7,0.001]
[1771204795817,0.4687802,1975.8,1975.5,0.001]
[1771204796022,7.69628956,1975.7,1975.5,0.001]
[1771204798018,7.69628956,1975.7,1975.2,0.001]
[1771204798019,0.4687802,1975.6,1975.2,0.001]
[1771204798225,8.16506976,1975.5,1975.2,0.001]
[1771204798450,0.4687802,1975.4,1975.2,0.001]
[1771204798652,0.4687802,1975.1,1974.0,0.00153886]
[1771204798839,7.69628956,1974.6,1974.1,0.45217414]
[1771204799045,7.69628956,1974.6,1974.2,0.853]
[1771204799849,0.4687802,1974.7,1974.2,0.853]
[1771204800367,0.4687802,1974.8,1974.1,0.45217414]
[1771204800538,0.4687802,1974.8,1974.3,0.853]
[1771204800865,8.16506976,1974.7,1974.3,0.853]
[1771204801038,8.16506976,1974.9,1974.3,0.853]
[1771204801236,0.4687802,1974.8,1974.3,0.853]
[1771204803134,0.4687802,1974.8,1974.3,0.854]
[1771204803565,7.69628956,1974.9,1974.2,0.001]
[1771204803566,8.16506976,1974.5,1974.2,0.001]
[1771204803886,7.69628956,1974.3,1973.4,0.45217414]
[1771204804089,7.69628956,1974.3,1973.5,0.45217414]
[1771204804243,8.16506976,1974.3,1973.5,0.45217414]
[1771204806195,8.18021481,1974.0,1973.6,0.853]
[1771204806339,8.18021481,1974.2,1973.6,0.853]
[1771204806673,7.71143461,1974.0,1973.5,0.853]
[1771204807047,7.71143461,1974.0,1973.4,0.45217414]
[1771204807269,7.71143461,1974.0,1973.5,0.853]
[1771204807565,7.71143461,1974.0,1973.2,0.45217414]
[1771204808156,8.97821481,1974.2,1973.4,0.45217414]
[1771204808367,8.18021481,1974.2,1973.4,0.45217414]
[1771204808571,7.71143461,1974.0,1973.4,0.45217414]
[1771204808768,7.71143461,1973.8,1973.3,0.852]
[1771204808957,7.71143461,1973.8,1973.2,0.45217414]
[1771204809159,7.71143461,1973.8,1972.5,7.71143461]
[1771204809160,8.18021481,1973.4,1972.6,0.50286351]
[1771204809351,7.71143461,1973.0,1972.6,0.912]
[1771204809549,7.71143461,1973.0,1972.5,0.852]
[1771204810255,7.71143461,1973.1,1972.5,1.30417414]
[1771204810638,7.71143461,1973.1,1972.5,0.45217414]
[1771204810843,7.71143461,1973.1,1972.6,0.852]
[1771204811344,1.2687802,1973.4,1972.6,0.852]
[1771204811345,7.71143461,1972.9,1972.6,0.852]
[1771204811751,7.71143461,1972.7,1972.4,0.852]
[1771204811954,8.18021481,1973.0,1972.3,1.93124408]
[1771204811955,0.4687802,1972.9,1972.3,1.93124408]
[1771204812170,0.4687802,1973.1,1972.3,1.93124408]
[1771204812343,0.801,1973.2,1972.3,2.38341822]
[1771204812540,1.2697802,1973.2,1972.3,2.38341822]
[1771204813159,0.4687802,1973.1,1972.3,2.38341822]
[1771204813358,0.4687802,1973.1,1972.3,1.93124408]
[1771204814256,0.4687802,1973.1,1972.3,1.07924408]
[1771204815548,0.4687802,1973.1,1972.7,0.001]
[1771204815873,0.48768985,1972.9,1972.5,0.001]
[1771204817978,0.48768985,1972.9,1972.4,0.001]
[1771204818479,0.801,1973.2,1972.4,0.001]
[1771204818480,0.48768985,1973.1,1972.4,0.001]
[1771204821590,0.48768985,1973.1,1972.3,0.06086557]
[1771204823768,0.48768985,1972.9,1972.0,0.00153886]
[1771204823985,0.48768985,1972.7,1972.0,0.00153886]
[1771204825367,0.802,1972.8,1972.0,0.49472544]
[1771204825567,0.48768985,1973.1,1972.2,0.49318658]
[1771204825972,2.004948,1973.0,1972.2,0.49318658]
[1771204827167,0.48768985,1973.0,1972.2,0.49318658]
[1771204827987,4.258753,1973.1,1972.3,0.49418658]
[1771204828164,0.0011,1973.0,1972.3,0.49418658]
[1771204828910,0.0011,1973.0,1972.5,0.49318658]
[1771204829371,0.0011,1973.9,1972.4,0.89252408]
[1771204829372,0.0011,1973.3,1972.6,0.49318658]
[1771204830062,0.47871612,1973.8,1972.6,0.49318658]
[1771204830469,0.0011,1973.9,1972.6,0.49318658]
[1771204831492,0.0011,1973.9,1972.8,0.49318658]
[1771204831792,0.0011,1973.9,1972.5,1.26740826]
[1771204831793,0.0011,1973.9,1973.0,0.49318658]
[1771204831997,0.0011,1973.9,1973.2,0.49318658]
[1771204832571,0.48878985,1973.9,1973.1,0.847]
[1771204832968,0.48878985,1973.9,1973.1,1.34018658]
[1771204833204,0.0011,1973.9,1973.2,0.49318658]
[1771204834995,0.0011,1973.9,1973.2,1.76]
[1771204835886,0.0011,1973.9,1973.1,0.49318658]
[1771204835887,0.48878985,1973.9,1973.1,0.49318658]
[1771204836092,0.48878985,1973.9,1973.2,0.846]
[1771204836801,0.48878985,1973.9,1972.6,0.49318658]
[1771204836989,0.48768985,1973.7,1972.7,1.80448334]
[1771204837195,0.48768985,1973.7,1972.8,0.49318658]
[1771204837710,0.0011,1973.9,1973.0,0.49318658]
[1771204838274,0.0011,1973.9,1973.1,0.53866069]
[1771204838505,0.0011,1973.9,1973.1,0.49318658]
[1771204838506,0.48878985,1973.9,1973.1,0.49318658]
[1771204841628,0.0011,1973.8,1973.1,0.49318658]
[1771204843709,0.48432512,1973.8,1973.1,0.49318658]
[1771204844391,0.48322512,1973.6,1972.7,0.45021824]
[1771204844590,0.48322512,1973.6,1972.6,0.45021824]
[1771204844826,0.48432512,1973.8,1972.8,0.45021824]
[1771204848235,0.48432512,1973.8,1972.7,0.04549833]
[1771204848414,0.48432512,1973.8,1972.7,2.29250838]
[1771204848921,0.48432512,1973.8,1972.7,2.24701005]
[1771204849124,0.48432512,1973.8,1972.8,0.53749915]
[1771204849332,0.48432512,1973.8,1972.8,0.49201005]
[1771204851535,0.48432512,1973.8,1972.6,0.49201005]
[1771204852147,0.48432512,1973.8,1972.7,0.49201005]
[1771204854246,0.48432512,1973.8,1972.7,0.913]
[1771204854543,0.48432512,1973.8,1972.8,0.49301005]
[1771204854723,0.45985593,1973.6,1972.8,0.49301005]
[1771204858441,0.46095593,1973.7,1972.8,0.49301005]
[1771204861049,9.35782615,1973.6,1972.8,0.001]
[1771204861236,0.45985593,1973.3,1972.7,0.001]
[1771204862248,5.89590293,1973.5,1972.7,0.49301005]
[1771204862432,3.841047,1973.4,1972.7,0.49301005]
[1771204862639,0.45985593,1973.4,1972.7,0.49301005]
[1771204862841,0.1024,1973.6,1972.9,0.49201005]
[1771204863424,3.509,1973.6,1972.9,0.49201005]
[1771204864551,3.96885593,1973.6,1972.9,0.49201005]
[1771204864854,0.45985593,1973.5,1972.7,0.54306139]
[1771204868028,0.45985593,1973.5,1972.8,0.001]
[1771204868225,0.45985593,1973.5,1972.8,0.49301005]
[1771204870730,0.45985593,1973.5,1972.8,0.001]
[1771204871141,0.56335593,1973.7,1972.9,0.49201005]
[1771204871340,3.222549,1973.6,1972.9,0.49201005]
[1771204871540,0.45985593,1973.6,1972.9,0.49201005]
[1771204873770,0.0011,1973.7,1973.1,0.47417888]
[1771204874064,0.46732287,1973.7,1973.0,0.913]
[1771204874267,0.46732287,1973.7,1972.9,1.43721752]
[1771204874945,0.46732287,1973.7,1972.9,1.38717888]
[1771204875981,7.71637553,1973.6,1972.9,1.38717888]
[1771204876282,7.71637553,1973.6,1972.9,0.47417888]
[1771204876457,8.1825984,1973.6,1972.9,0.47417888]
[1771204880059,0.46622287,1973.6,1972.9,0.47417888]
[1771204880264,0.0011,1973.7,1972.9,0.47417888]
[1771204880453,0.0011,1973.7,1973.1,0.47417888]
[1771204880656,0.0011,1973.5,1973.1,0.47417888]
[1771204880977,0.0011,1973.5,1973.3,0.47417888]
[1771204882754,0.0011,1973.5,1973.3,1.30717888]
[1771204882958,0.0011,1973.5,1973.3,0.833]
[1771204883552,0.0011,1973.5,1973.3,1.30717888]
[1771204884385,0.0011,1973.5,1973.4,0.47417888]
[1771204885460,0.0011,1973.7,1973.4,0.47417888]
[1771204886753,0.0011,1973.7,1973.5,0.47417888]
[1771204887374,0.0011,1973.7,1973.4,0.837]
[1771204887574,0.0011,1973.7,1973.1,0.47417888]
[1771204887875,0.0011,1973.7,1972.9,0.47417888]
[1771204887876,0.46732287,1973.7,1972.9,0.47417888]
[1771204888054,0.46732287,1973.7,1973.0,0.838]
[1771204888055,7.71637553,1973.6,1973.0,0.838]
[1771204888465,7.71637553,1973.6,1972.8,0.001]
[1771204888466,0.46622287,1973.5,1972.8,0.001]
[1771204888658,0.46622287,1973.5,1972.9,0.837]
[1771204889147,0.46622287,1973.5,1973.0,0.837]
[1771204889956,0.46622287,1973.5,1972.9,0.837]
[1771204890254,0.46622287,1973.5,1972.8,0.001]
[1771204890980,0.46622287,1973.5,1972.8,0.05167652]
[1771204892192,0.46622287,1973.5,1972.8,0.001]
[1771204893474,0.46622287,1973.5,1972.9,0.001]
[1771204893685,0.0011,1973.4,1972.9,0.001]
[1771204893978,0.0011,1973.4,1972.9,0.47517888]
[1771204895955,0.0011,1973.4,1973.0,0.05066881]
[1771204896590,0.0011,1973.4,1973.0,0.52484769]
[1771204896888,0.0011,1973.4,1973.0,0.47417888]
[1771204897055,0.0011,1973.4,1973.1,0.05066623]
[1771204897791,0.0011,1973.4,1973.0,0.52484511]
[1771204906385,0.0011,1973.4,1973.1,0.833]
[1771204906575,0.0011,1973.4,1972.9,0.001]
[1771204906780,0.0011,1973.4,1973.0,0.833]
[1771204907381,0.0011,1973.4,1973.1,0.001]
[1771204916432,0.0011,1973.4,1973.1,0.88766365]
[1771204916720,0.0011,1973.4,1973.1,1.35168795]
[1771204917419,0.0011,1973.4,1973.2,0.837]
[1771204918996,0.0011,1973.4,1973.1,0.001]
[1771204919195,0.47936078,1973.4,1973.1,0.001]
[1771204920315,0.47936078,1973.4,1973.2,0.001]
[1771204921022,0.0011,1973.4,1973.2,0.4650243]
[1771204924002,0.0011,1973.7,1973.4,0.4640243]
[1771204924311,0.0011,1973.7,1973.5,0.89264052]
[1771204924712,0.0011,1973.7,1973.5,9.07101775]
[1771204925238,0.0011,1973.7,1973.6,0.4640243]
[1771204925394,0.0011,1973.9,1973.8,0.4640243]
[1771204925923,0.0011,1973.9,1973.7,7.71435293]
[1771204926097,0.0011,1973.9,1973.8,0.844]
[1771204927701,0.0011,1974.1,1973.8,0.844]
[1771204930331,0.47936078,1974.1,1973.5,0.05063538]
[1771204930512,0.47936078,1974.1,1973.6,0.849]
[1771204931032,0.47936078,1974.1,1973.7,0.05066626]
[1771204931230,0.0011,1974.1,1973.6,0.89966626]
[1771204931829,0.0011,1974.1,1973.6,1.36369056]
[1771204932014,0.47936078,1974.1,1973.4,0.05066626]
[1771204932335,0.47826078,1973.9,1973.5,0.849]
[1771204932804,0.47826078,1973.9,1973.8,0.001]
[1771204935337,0.47826078,1973.9,1973.6,0.001]
[1771204937434,7.70957994,1974.0,1973.2,0.001]
[1771204937435,0.49984632,1973.7,1973.2,0.001]
[1771204937728,7.70957994,1974.0,1973.2,0.001]
[1771204937729,0.49984632,1973.5,1973.2,0.001]
[1771204939321,0.49984632,1973.3,1973.0,0.00253886]
[1771204944935,0.49984632,1973.3,1973.1,0.001]
[1771204945107,0.0011,1973.2,1973.1,0.001]
[1771204955824,0.49984632,1973.1,1972.9,0.001]
[1771204957344,0.0011,1973.2,1972.9,0.001]
[1771204957524,0.0011,1973.2,1973.1,0.001]
[1771204964639,0.0011,1973.2,1972.8,0.42914157]
[1771204964830,0.0011,1973.2,1972.8,0.842]
[1771204967673,0.0011,1973.2,1972.7,1.38990875]
[1771204968538,0.0011,1973.2,1972.7,0.54790875]
[1771204968737,0.0011,1973.2,1972.7,1.33921681]
[1771204968939,0.0011,1973.2,1972.7,1.38990361]
[1771204969440,0.0011,1973.2,1972.9,0.001]
[1771204969764,0.47800279,1973.2,1972.9,0.001]
[1771204970140,0.0011,1973.1,1972.9,0.001]
[1771204972048,0.47800279,1973.1,1972.9,0.001]
[1771204972937,0.0011,1973.1,1972.9,0.001]
[1771204977575,0.47800279,1973.1,1972.9,0.001]
[1771204978164,0.47690279,1973.0,1972.9,0.001]
[1771204978792,0.47690279,1973.0,1972.9,0.00011352]
[1771204982689,0.0011,1973.0,1972.9,0.00011352]
[1771204986882,0.47800279,1973.0,1972.9,0.00011352]
[1771204988090,7.70957994,1973.0,1972.6,0.001]
[1771204988293,7.70957994,1973.0,1971.4,0.1074038]
[1771204988294,7.70847994,1972.7,1972.1,0.49721681]
[1771204988493,7.70847994,1972.7,1972.1,0.54789074]
[1771204989299,8.18538273,1972.9,1972.1,0.54789074]
[1771204989699,7.70847994,1972.7,1972.1,0.54789074]
[1771204989905,7.72258414,1972.8,1972.1,0.49721681]
[1771204990211,8.19948693,1972.8,1972.1,0.49721681]
[1771204990416,0.47690279,1972.7,1972.1,0.49721681]
[1771204990790,0.47690279,1972.7,1972.0,0.52153886]
[1771204990995,0.47690279,1972.5,1972.0,0.00153886]
[1771204991788,8.19948693,1972.4,1972.0,0.00153886]
[1771204993215,8.19948693,1972.2,1972.0,0.00153886]
[1771204993921,8.19948693,1972.2,1971.5,0.51053621]
[1771204993922,0.46954593,1972.1,1971.5,0.51053621]
[1771204994122,8.19213007,1972.0,1971.4,0.1074038]
[1771204994623,0.833,1972.2,1971.4,0.1074038]
[1771204994624,7.72258414,1971.8,1971.4,0.1074038]
[1771204994791,8.19213007,1971.8,1971.4,0.1074038]
[1771204995285,0.46954593,1971.8,1971.4,0.1074038]
[1771204996103,8.19213007,1972.0,1971.4,0.1074038]
[1771204996310,0.46954593,1971.9,1971.4,0.1074038]
[1771204996703,8.19213007,1972.5,1971.6,0.45985973]
[1771204996890,8.19213007,1972.5,1971.7,0.45985973]
[1771204997093,0.46954593,1972.4,1971.7,0.45985973]
[1771204997337,7.72258414,1972.5,1970.2,0.45985973]
[1771204997338,0.46954593,1971.5,1970.2,0.45985973]
[1771204997489,7.72258414,1971.1,1970.4,0.45985973]
[1771204997816,0.1024,1971.8,1971.0,0.45985973]
[1771204997817,0.836,1971.8,1971.0,0.45985973]
[1771204998020,1.30708479,1972.0,1971.2,0.45985973]
[1771204998333,8.19213007,1971.9,1971.2,0.45985973]
[1771204998537,7.72258414,1971.5,1970.6,0.45985973]
[1771204998700,8.19213007,1971.5,1970.9,0.837]
[1771204999044,8.19213007,1971.7,1970.9,1.29685973]
[1771204999212,0.46954593,1971.9,1970.9,0.45985973]
[1771204999523,8.19213007,1971.7,1970.9,1.29585973]
[1771204999888,0.46954593,1971.7,1971.0,0.45985973]
[1771205000218,0.46954593,1971.7,1970.9,0.836]
[1771205000219,0.46954593,1971.3,1970.1,0.45985973]
[1771205000840,0.46954593,1971.1,1970.0,0.00153886]
[1771205001135,0.46954593,1971.1,1970.2,0.584]
[1771205001350,0.46954593,1970.9,1970.2,0.836]
[1771205002149,1.26848456,1970.9,1970.0,0.00153886]
[1771205002363,0.46954593,1970.8,1970.1,0.581]
[1771205002638,5.07357362,1971.0,1970.1,0.581]
[1771205002639,0.46954593,1971.0,1970.1,0.45985973]
[1771205004114,0.46954593,1971.3,1970.1,0.45985973]
[1771205004620,0.45674593,1971.2,1970.3,0.45985973]
[1771205005140,0.45674593,1971.2,1970.4,1.749]
[1771205005342,0.45674593,1971.2,1970.3,0.45985973]
[1771205005550,0.45674593,1971.2,1970.4,0.835]
[1771205005750,0.45194593,1971.2,1970.4,0.835]
[1771205006738,0.45194593,1971.2,1970.2,0.001]
[1771205007052,0.0011,1970.9,1970.4,0.834]
[1771205007727,0.0011,1970.9,1970.2,0.46085973]
[1771205007931,0.0011,1970.9,1970.3,1.748]
[1771205008136,0.0011,1970.9,1970.4,0.48171315]
[1771205012334,0.0011,1970.9,1970.5,0.834]
[1771205012734,0.0011,1970.9,1970.6,0.48171315]
[1771205014566,0.49118518,1970.9,1970.3,0.833]
[1771205016260,0.49118518,1970.9,1970.4,0.833]
[1771205016569,0.49118518,1970.9,1970.2,0.001]
[1771205016757,0.54076741,1970.8,1970.3,1.747]
[1771205017741,0.0011,1970.9,1970.3,1.747]
[1771205018044,0.49118518,1970.9,1970.3,1.747]
[1771205020648,0.49118518,1970.9,1970.4,0.001]
[1771205021783,0.05068223,1970.8,1970.4,0.001]
[1771205022842,0.49008518,1970.6,1970.4,0.001]
[1771205024378,0.46253562,1970.0,1969.3,0.49032083]
[1771205024581,7.73728682,1969.7,1969.0,1.32285969]
[1771205024784,0.46253562,1969.8,1969.0,1.32285969]
[1771205024785,0.46253562,1969.8,1969.2,0.49032083]
[1771205025089,8.20587731,1970.1,1969.2,0.49032083]
[1771205025246,0.46859049,1970.0,1969.2,0.49032083]
[1771205025464,7.73728682,1969.9,1969.2,0.49032083]
[1771205025664,8.20587731,1969.7,1969.2,1.745]
[1771205025896,0.46859049,1969.7,1969.2,1.745]
[1771205026267,0.46859049,1969.7,1969.0,0.00153886]
[1771205026490,0.46859049,1969.7,1968.0,1.27183398]
[1771205026491,0.46859049,1969.1,1968.1,0.53839134]
[1771205026689,0.46859049,1969.3,1968.1,0.48763035]
[1771205027664,0.46859049,1969.3,1968.2,0.833]
[1771205027665,0.46859049,1969.0,1968.2,0.833]